Cogmind - Beta 15 @@@ ROGUE MODE // 2025.05.20 @ 20:28:26 Player: saltine Result: Destroyed by H-77 Assassin with High-powered Shotgun Performance ------------- Evolutions (7) 3500 Regions Visited (29) 5800 Robots Destroyed (303) 1515 Value Destroyed (14794) 14794 Prototype IDs (56) 1120 Alien Tech Used (7) 1400 Bonus (10604) 10604 TOTAL SCORE: 38733 Bonus ------- High Alert Combat Kills 965 Follower Combat Kills 2151 Entered Garrisons 1800 Used RIF Installer 5000 Aligned with FarCom 300 Scanned by Researcher 500 Friendly Fire -112 Cogmind --------- Core Integrity 0/1300 Matter 282/300 Energy 326/700 System Corruption 33% Temperature Cool (0) Movement Core (50) Location -3/Section 7 Parts ------- > --- POWER (1) -------- (None) > --- PROPULSION (6) --- (None) > --- UTILITY (11) ----- Experimental Energy Well Relay Coupler [Sentry] (8) > --- WEAPON (3) ------- (None) > --- INVENTORY (5) ---- Chronowheel Peak State ------------ > --- POWER ------------ Quantum Reactor > --- PROPULSION ------- Improved Antigrav System Improved Antigrav System Improved Antigrav System Improved Linear Gravjet Antigrav Array > --- UTILITY ---------- Coolant Network Experimental Coolant Injector Experimental Energy Well Advanced Signal Interpreter Advanced Target Analyzer Quantum Capacitor Centrium Medium Armor Plating Centrium Medium Armor Plating Relay Coupler [Grunt] > --- WEAPON ----------- Compact HERF Cannon Sigix Broadsword > --- INVENTORY -------- Improved Gyrokinetic Inverter Gamma Rifle Sigix Terminator Field Lobotomy Kit [Rating: 177] Favorites ----------- Power Cold Fusion Reactor Engine Improved Ion Engine Power Core Reinforced Fission Core Reactor Cold Fusion Reactor Propulsion Wheel Treads Light Treads Leg Tripod Weapons Platform Wheel Wheel Hover Unit Improved Antigrav System Utility Relay Coupler [Sentry] Device Multitargeting Array Storage Cargo Storage Unit Processor Advanced Signal Interpreter Hackware Relay Coupler [Sentry] Protection Light Armor Plating Artifact Phase Armor Weapon Minigun Energy Gun Gatling Laser Energy Cannon Heavy Plasma Cannon Ballistic Gun Minigun Ballistic Cannon Enhanced Hardcell Cannon Launcher Gamma Bomb Array Special Weapon Advanced Remote Datajack Impact Weapon Power Maul Slashing Weapon Sigix Broadsword Build | -11 -10 -10 -9 -9 -9 -8 -8 -8 -8 -7 -7 -6 -6 -6 -6 -5 -5 -5 -5 -5 -5 -4 -4 -3 -3 -3 -3 -3 -3 ------- Run | Yrd Mat Min Mat Min Exi Min Mat Gar Mat Fac Gar Fac Gar Fac Gar Fac Was Fac Gar Fac Gar Fac Gar Res Gar Res Qua Gar Sec Slots Evolved 14 | . . . 2 . . . 2 . . 2 . 2 . . . 2 . . . . . 2 . 2 . . . . . Power . | . . . . . . . . . . . . . . . . . . . . . . . . . . . . . . Propulsion 4 | . . . . . . . . . . 1 . 1 . . . 2 . . . . . . . . . . . . . Utility 9 | . . . 1 . . . 2 . . 1 . 1 . . . . . . . . . 2 . 2 . . . . . Weapon 1 | . . . 1 . . . . . . . . . . . . . . . . . . . . . . . . . . Parts Attached 240 | 1 2 6 20 . 13 10 5 5 13 8 7 1 9 1 18 4 . 4 10 2 8 12 2 4 14 17 41 2 1 Power 23 | . . 1 3 . 1 1 . . 2 . . . 4 . . . . 1 . . . 1 1 . 2 1 5 . . Engine 7 | . . 1 3 . 1 . . . 1 . . . 1 . . . . . . . . . . . . . . . . Core 3 | . . . . . . 1 . . . . . . 1 . . . . . . . . . . . . . 1 . . Reactor 13 | . . . . . . . . . 1 . . . 2 . . . . 1 . . . 1 1 . 2 1 4 . . Propulsion 59 | . . 2 3 . 4 2 1 2 . 1 . . . 1 4 1 . . 1 2 3 6 . 3 2 6 15 . . Treads 25 | . . 2 3 . 2 2 . 2 . . . . . . 3 1 . . . . . 1 . 2 . 1 6 . . Leg 8 | . . . . . 2 . . . . 1 . . . 1 1 . . . . . 2 1 . . . . . . . Wheel 20 | . . . . . . . 1 . . . . . . . . . . . 1 2 1 3 . 1 2 5 4 . . Hover 6 | . . . . . . . . . . . . . . . . . . . . . . 1 . . . . 5 . . Flight . | . . . . . . . . . . . . . . . . . . . . . . . . . . . . . . Utility 87 | 1 . 1 6 . 5 4 3 1 4 5 4 1 1 . 3 2 . 2 4 . 4 4 . 1 7 7 16 . 1 Device 30 | 1 . 1 1 . 2 2 2 1 2 2 2 1 . . 1 . . . 1 . . . . . . 4 7 . . Storage 5 | . . . 1 . 1 1 . . . . 1 . . . . . . . . . . . . . . 1 . . . Processor 6 | . . . . . . . . . . 1 . . . . . . . . 1 . . . . . . 1 3 . . Hackware 21 | . . . . . . . . . . . 1 . 1 . 1 1 . . 1 . 4 3 . 1 6 1 1 . . Protection 23 | . . . 4 . 2 1 1 . 2 2 . . . . 1 1 . 2 1 . . 1 . . 1 . 4 . . Artifact 2 | . . . . . . . . . . . . . . . . . . . . . . . . . . . 1 . 1 Weapon 71 | . 2 2 8 . 3 3 1 2 7 2 3 . 4 . 11 1 . 1 5 . 1 1 1 . 3 3 5 2 . Energy Gun 16 | . 1 . . . . . . . 2 2 2 . 2 . 5 . . . . . . 1 . . . . 1 . . Energy Cannon 8 | . . . . . 1 . . . . . . . 1 . . 1 . . 1 . . . 1 . 1 1 1 . . Ballistic Gun 28 | . 1 2 7 . 1 2 1 2 5 . . . 1 . 3 . . 1 2 . . . . . . . . . . Ballistic Cannon 5 | . . . . . . . . . . . . . . . . . . . 2 . 1 . . . 1 1 . . . Launcher 4 | . . . . . 1 . . . . . . . . . 1 . . . . . . . . . . 1 . 1 . Special Weapon 7 | . . . 1 . . 1 . . . . . . . . 2 . . . . . . . . . 1 . 1 1 . Impact Weapon 2 | . . . . . . . . . . . 1 . . . . . . . . . . . . . . . 1 . . Slashing Weapon 1 | . . . . . . . . . . . . . . . . . . . . . . . . . . . 1 . . Piercing Weapon . | . . . . . . . . . . . . . . . . . . . . . . . . . . . . . . Special Melee Weapon . | . . . . . . . . . . . . . . . . . . . . . . . . . . . . . . Unidentified Prototypes 35 | . . 1 1 . 5 5 . . 3 2 1 . . . . . . 1 2 . 1 . 1 . . 2 8 1 1 Corrupted Parts 7 | . . . . . . . . . . . . . . . 2 . . . 3 . . . . . . . 2 . . System Corruption 30 | . . . . . . . . . . . . . . . 6 . . . 12 . . . . . . . 12 . . Parts Lost 111 | . . 1 1 . 1 5 3 . 11 . . . . 1 11 . . . 3 1 8 4 5 . 1 8 29 10 8 Power 10 | . . 1 1 . . 1 . . 2 . . . . . 1 . . . . . . . 1 . . . 2 1 . Propulsion 42 | . . . . . . 1 2 . 2 . . . . . 2 . . . 2 1 4 2 2 . 1 5 13 4 1 Utility 28 | . . . . . . 1 . . 2 . . . . . 3 . . . . . 2 1 . . . 3 8 4 4 Weapon 31 | . . . . . 1 2 1 . 5 . . . . 1 5 . . . 1 . 2 1 2 . . . 6 1 3 Highest Loss Streak 14 | . . 1 1 . 1 5 3 . 7 . . . . 1 9 . . . 1 1 5 3 5 . 1 6 14 10 8 To Critical Strikes 1 | . . . . . 1 . . . . . . . . . . . . . . . . . . . . . . . . Average Backups 19 | 6 7 7 13 15 17 17 17 18 17 18 23 25 25 25 25 26 28 26 27 26 27 24 21 23 27 25 12 3 1 Power 1 | 1 1 1 . 1 1 . 1 1 1 1 2 2 1 1 . 1 1 1 1 1 2 2 1 1 1 1 . . . Propulsion 2 | 4 4 2 3 3 3 3 3 2 1 . 1 3 3 4 2 1 1 1 . . . . . . 3 2 . . . Utility 8 | . . 1 3 4 5 6 5 8 8 9 11 12 11 11 9 11 12 11 11 12 12 10 9 11 14 13 5 . . Weapon 6 | 1 2 3 5 6 6 5 5 5 4 4 6 6 6 6 8 10 12 10 10 9 10 8 8 6 7 6 3 . . Tool/Special . | . . . . . . . . . . . . . . . . . . . . . . . . . . . . . . Unused Backups 64 | 6 . 2 4 1 11 1 2 3 3 1 1 2 3 . 2 . . 1 . . . . . . 5 . 15 . 1 Power 11 | 1 . 1 . . 4 . . . 1 . . . 2 . . . . 1 . . . . . . 1 . . . . Propulsion 12 | 2 . 1 2 . 2 . 1 . . 1 . . . . . . . . . . . . . . . . 3 . . Utility 21 | 1 . . . . 4 1 . 2 2 . . 1 . . 1 . . . . . . . . . 2 . 7 . . Weapon 17 | 2 . . 2 1 1 . 1 1 . . 1 1 1 . 1 . . . . . . . . . 2 . 3 . . Tool/Special 3 | . . . . . . . . . . . . . . . . . . . . . . . . . . . 2 . 1 Average Slot Usage (%) 83 | . 94 99 98 100 99 95 81 81 74 78 79 70 75 79 78 76 76 71 59 68 67 78 79 78 88 83 72 66 38 Engine 3 | . 14 13 10 11 11 2 . . 1 6 6 5 1 . . . . . . . . . . . . . . . . Core 1 | . . . . . . 6 9 9 6 . . . 2 . . . . . . . . . . . . . . . . Reactor 2 | . . . . . . . . . . . . . . 5 6 5 5 5 5 5 5 4 5 4 4 4 3 2 . Treads 9 | . . 24 22 22 16 21 8 . 1 . . . . . 10 17 17 17 13 6 4 1 2 6 5 3 8 . . Leg 2 | . 28 3 . . 5 . . . . 4 6 5 5 9 1 . . . . . . 10 5 1 . . . . . Wheel 4 | . . . . . . . 4 8 7 2 . . . . . . . . . 7 11 7 12 12 16 15 7 . . Device 10 | . 8 13 9 . 3 4 7 18 20 15 13 11 17 17 17 13 11 11 6 5 7 5 7 9 9 15 12 15 7 Storage 7 | . 14 14 11 11 11 17 14 9 9 6 6 5 5 5 6 5 5 5 5 5 7 5 5 4 4 4 4 4 4 Hackware 7 | . . . . . . . . . . . 5 5 10 11 6 10 11 6 8 11 5 25 26 23 26 22 12 9 9 Protection 7 | . . . 12 22 18 9 11 9 6 11 8 5 . . 5 3 5 4 4 5 4 2 2 . 5 1 3 6 . Energy Gun 4 | . 24 1 . . . . . . . 20 24 23 23 18 13 14 11 8 2 . . 2 . . . . 1 . . Energy Cannon 1 | . . . . . . . . . . . . . . . . 1 . 4 3 5 1 3 2 4 5 4 2 4 4 Ballistic Gun 13 | . 3 26 31 33 32 32 26 26 19 2 5 5 1 4 4 . . . 1 11 11 2 . . . . . . . Peak Build Rating 177 | 7 7 13 20 21 49 54 62 57 70 79 91 92 101 101 102 113 108 116 121 108 104 93 91 119 124 132 177 174 113 Average Rating 77 | 6 6 7 14 20 31 42 51 56 54 69 85 89 94 98 91 105 108 113 99 98 93 80 83 105 119 122 144 139 90 On Entrance 74 | 6 7 7 8 20 21 32 44 57 57 53 79 89 92 101 98 95 108 108 115 107 96 57 90 86 119 120 122 174 71 Naked Turns . | . . . . . . . . . . . . . . . . . . . . . . . . . . . . . . Heaviest Build 235 | 12 13 14 42 42 70 77 97 94 96 75 175 176 181 171 186 182 177 195 200 196 198 189 185 191 204 206 235 74 26 Greatest Support 225 | 20 20 40 43 43 60 40 60 45 45 90 90 90 90 90 145 220 220 220 225 150 75 30 30 30 60 58 145 72 26 Greatest Overweight (x) 17 | . . . . . 2 1 3 3 3 2 1 1 2 1 1 . . . 1 8 16 17 16 9 6 5 11 1 . Average Overweight (x) 1 | . . . . . . 1 2 2 2 . . 1 1 1 1 . . . . 4 7 10 6 6 4 3 1 . . Largest Inventory Capacity 30 | 8 8 8 15 15 20 20 20 20 20 20 30 30 30 30 30 30 30 30 30 30 30 30 30 30 30 30 30 5 5 Average Capacity 22 | 8 8 8 14 15 19 20 20 20 20 20 26 30 30 30 30 30 30 30 30 30 30 30 30 30 30 30 16 5 5 Most Carried 30 | 7 8 8 15 15 20 20 20 20 20 20 30 30 30 30 30 30 30 30 30 30 30 29 25 30 30 30 30 5 2 Average Carried 21 | 6 7 7 13 14 17 19 19 19 19 19 26 29 29 29 28 28 30 29 29 28 29 25 22 24 29 29 15 4 1 Final Capacity 30 | 8 8 8 15 15 20 20 20 20 20 20 30 30 30 30 30 30 30 30 30 30 30 30 30 30 30 30 5 5 5 Final Carried 30 | 7 7 8 15 15 20 20 20 20 20 20 30 30 30 30 30 30 30 29 27 30 30 23 21 29 30 28 5 2 1 Class Distribution -------------------- 27% | Tank 19% | Scavenger-Tank 12% | Botlord-Tank 10% | Scavenger-Mutant 9% | Hauler-Gunner 5% | Botlord-Mutant 4% | Hauler-Mutant 3% | Mutant 3% | Botlord-Gunner Dominant Class ---------------- Mutant | -10/Materials Scavenger-Mutant | -10/Mines Scavenger-Tank | -9/Materials Tank | -9/Mines Tank | -9/Exiles Tank | -8/Mines Tank | -8/Materials Scavenger-Tank | -8/Garrison Tank | -8/Materials Tank | -7/Factory Hauler-Gunner | -7/Garrison Hauler-Gunner | -6/Factory Hauler-Gunner | -6/Garrison Hauler-Gunner | -6/Factory Hauler-Mutant | -6/Garrison Scavenger-Tank | -5/Factory Scavenger-Tank | -5/Waste Scavenger-Tank | -5/Factory Hauler-Mutant | -5/Garrison Scavenger-Tank | -5/Factory Scavenger-Tank | -5/Garrison Botlord-Gunner | -4/Factory Botlord-Gunner | -4/Garrison Botlord-Tank | -3/Research Botlord-Tank | -3/Garrison Botlord-Tank | -3/Research Scavenger-Mutant | -3/Quarantine Scavenger-Mutant | -3/Garrison Mutant | -3/Section 7 Resources | -11 -10 -10 -9 -9 -9 -8 -8 -8 -8 -7 -7 -6 -6 -6 -6 -5 -5 -5 -5 -5 -5 -4 -4 -3 -3 -3 -3 -3 -3 ----------- Run | Yrd Mat Min Mat Min Exi Min Mat Gar Mat Fac Gar Fac Gar Fac Gar Fac Was Fac Gar Fac Gar Fac Gar Res Gar Res Qua Gar Sec Matter Collected 11472 | 210 10 109 827 70 698 401 643 737 846 52 546 . 301 21 485 12 . 411 501 264 966 426 300 30 505 799 1277 25 . Remotely 286 | . . . . . . . . . . . . . . . . . . . . . . . . . . . 286 . . Salvage Created 14019 | 198 33 93 1292 90 414 167 736 792 542 72 1210 . 289 30 1166 88 . 610 1070 235 1061 623 287 164 763 440 1352 202 . Parts 730 | 16 4 12 81 13 49 9 35 55 16 5 44 . 19 2 40 7 . 30 46 18 42 21 8 9 13 31 93 12 . Haulers Intercepted 10 | . . . 4 . . . 1 . 2 1 . . . . . . . 1 . . . 1 . . . . . . . Recyclers Shooed 8 | 1 . . . . . 1 1 . 1 . . . . . . . . . . . . 1 . 3 . . . . . Parts Field Recycled . | . . . . . . . . . . . . . . . . . . . . . . . . . . . . . . Retrieved Matter . | . . . . . . . . . . . . . . . . . . . . . . . . . . . . . . Parts Self-Destructed . | . . . . . . . . . . . . . . . . . . . . . . . . . . . . . . Prevented . | . . . . . . . . . . . . . . . . . . . . . . . . . . . . . . Kills | -11 -10 -10 -9 -9 -9 -8 -8 -8 -8 -7 -7 -6 -6 -6 -6 -5 -5 -5 -5 -5 -5 -4 -4 -3 -3 -3 -3 -3 -3 ------- Run | Yrd Mat Min Mat Min Exi Min Mat Gar Mat Fac Gar Fac Gar Fac Gar Fac Was Fac Gar Fac Gar Fac Gar Res Gar Res Qua Gar Sec Combat Hostiles Destroyed 256 | . 3 6 28 5 4 1 12 28 4 . 12 . 12 1 25 1 . 8 21 4 19 7 1 . 7 8 19 20 . Melee 4 | . . . . . . . . 1 . . . . . . . . . . . . . . . . . . . 3 . Guns 128 | . 3 6 28 5 1 1 12 14 3 . 11 . 6 1 16 . . . 6 3 12 . . . . . . . . Cannons 36 | . . . . . . . . . 1 . . . . . . . . 1 3 1 3 6 1 . 6 8 6 . . AOE 60 | . . . . . 3 . . 13 . . 1 . 6 . 3 . . 5 10 . . . . . . . 2 17 . Classes Destroyed 23 | 2 1 . 6 . 2 . 2 2 . . 1 . 1 . . 1 . . 2 1 . . . . . . 1 1 . Worker 4 | . . . 1 . . . . . . . . . . . . . . . . 1 . . . 2 . . . . . Builder 10 | . . . 1 . . . . . . . . . . . . . . 1 . . . 2 . . . 4 2 . . Tunneler 9 | 6 . . . . . . . . . 1 . . . . . . . 1 . 1 . . . . . . . . . Hauler 10 | . . . 4 . . . 1 . 2 1 . . . . . . . 1 . . . 1 . . . . . . . Recycler 8 | 1 . . 1 . . 1 1 . 1 . . . . . . . . 1 . . . 1 . 1 . . . . . Carrier 4 | . . . . . . . . . . . . . . . . . . . . . . . . . . . . 4 . Operator 1 | . . . . . . . . . . . . . . . . . . . . 1 . . . . . . . . . Turret 1 | . . . . . 1 . . . . . . . . . . . . . . . . . . . . . . . . Swarmer 85 | . 3 6 11 5 . . . 11 . . 6 . 9 1 7 . . 5 12 2 2 . . . . 1 . 4 . Cutter 2 | . . . . . . . . . . . . . . . . . . . 2 . . . . . . . . . . Saboteur 9 | . . . . . . . . 3 . . . . . . . . . . . . . . . . . . . 6 . Grunt 63 | . . . 10 . . . 6 7 3 . 3 . . . 10 . . 1 2 . 9 3 1 . 3 . . 5 . Brawler 4 | . . . 1 . . . . . . . . . 1 . . . . . . . . . . . 1 . . 1 . Duelist 7 | . . . . . . . 1 . . . . . 1 . . . . . 1 . 1 . . . 1 2 . . . Sentry 23 | . . . 6 . . . 3 5 . . 2 . . . 2 . . . 2 1 . . . . 2 . . . . Demolisher 1 | . . . . . . . . 1 . . . . . . . . . . . . . . . . . . . . . Specialist 7 | . . . . . . . . . . . 1 . . . . . . . . . . . . . . . 6 . . Hunter 9 | . . . . . . . 2 1 . . . . . . 2 . . . . 1 3 . . . . . . . . Programmer 28 | . . . . . . . . . . . . . 1 . 4 . . 2 . . 3 4 . . . 4 6 4 . Behemoth 4 | . . . . . . . . . . . . . . . . 1 . . . . 1 . 1 . . 1 . . . Quarantine Guard 6 | . . . . . . . . . . . . . . . . . . . . . . . . . . . 6 . . Executioner 2 | . . . . . . . . . . . . . . . . . . . 2 . . . . . . . . . . Alpha 7 1 | . . . . . . . . . . . . . . . . . . . . . . . . . . . 1 . . Assembled 3 | . . . . . 3 . . . . . . . . . . . . . . . . . . . . . . . . Best Kill Streak 21 | 2 3 3 7 3 3 1 4 10 3 2 3 . 4 1 8 1 . 5 9 4 3 4 1 1 2 4 6 21 . Combat Bots Only 17 | . 3 3 6 3 3 1 4 10 1 . 3 . 4 1 8 1 . 5 9 3 3 4 1 . 2 4 6 17 . Max Kills in Single Turn 21 | 1 1 1 2 1 3 1 1 8 2 2 3 . 2 1 2 1 . 5 4 2 2 1 1 1 1 1 2 21 . Gunslinging 2 | . . . 1 . . . . . . . 2 . 1 . 1 . . . . . 1 . . . . . . . . Exploded 17 | . . . . . 3 . . 8 . . 1 . 2 . 2 . . 5 4 . . . . . . . 1 17 . Melee 1 | . . . . . . . . 1 . . . . . . . . . . . . . . . . . . . 1 . Uniques/NPCs Destroyed 6 | . . . . . 4 1 . . 1 . . . . . . . . . . . . . . . . . . . . 8R-AWN (-9/Exiles) EX-HEX (-9/Exiles) EX-DEC (-9/Exiles) EX-BIN (-9/Exiles) AD-0RF (-8/Mines) 7R-MNS (-8/Materials) Combat | -11 -10 -10 -9 -9 -9 -8 -8 -8 -8 -7 -7 -6 -6 -6 -6 -5 -5 -5 -5 -5 -5 -4 -4 -3 -3 -3 -3 -3 -3 -------- Run | Yrd Mat Min Mat Min Exi Min Mat Gar Mat Fac Gar Fac Gar Fac Gar Fac Was Fac Gar Fac Gar Fac Gar Res Gar Res Qua Gar Sec Hostile Shots Fired 1898 | . 13 32 98 7 20 88 71 69 140 . 79 . 36 9 200 9 . 21 134 30 118 47 51 . 18 98 273 107 130 Missed 496 | . 4 7 24 1 8 5 22 20 13 . 36 . 13 1 49 3 . 6 32 7 17 12 21 . 6 25 72 44 48 Hits 1402 | . 9 25 74 6 12 83 49 49 127 . 43 . 23 8 151 6 . 15 102 23 101 35 30 . 12 73 201 63 82 Melee 31 | . . . . . . . 2 1 . . . . . . . . . . 10 . 8 . . . 3 7 . . . Projectile 1371 | . 9 25 74 6 12 83 47 48 127 . 43 . 23 8 151 6 . 15 92 23 93 35 30 . 9 66 201 63 82 AOE 5 | . . . . . . . . 2 . . . . . . . . . . 2 . . 1 . . . . . . . Critical Strikes 69 | . . . 1 . 6 . 2 2 10 . 1 . . . 4 . . 1 8 1 6 . 1 . 1 7 15 2 1 Part Disruptions 12 | . . . . . . 10 . . . . . . . . 1 . . . . . . . . . . . 1 . . Damage Taken 29210 | . 72 200 882 54 200 1080 770 766 2932 . 478 . 407 122 2155 105 . 262 2491 388 1719 777 683 . 468 1882 6855 2180 1282 Core 2956 | . 17 30 135 8 . 103 69 30 328 . 53 . 141 18 221 . . 16 188 . 175 39 132 . 36 238 411 155 413 Absorbed by Shields 275 | . . . . . . . . 4 . . . . . . 60 . . . . . 85 . 94 . 13 . . 19 . Reduced by Siege Mode 498 | . . . . . . . . . . . . . . . . . . . 98 5 45 . . . . 101 249 . . Ignored by Resistances 307 | . . . . . . . . . . . . . . . . . . . . . 286 21 . . . . . . . Regen/Repaired (Parts) 2669 | . . . 164 . . . 614 . 594 . . . . . . 149 . . . . . . . . . . 1054 94 . Core Remaining (%) 66 | 100 . 81 . . . 38 . . 22 . 92 . . . 55 . . . . . 62 . 85 . . . . . . Volleys Fired 1138 | 13 4 19 88 6 38 34 52 73 87 5 100 . 19 2 43 7 7 23 75 14 61 34 28 13 88 95 103 5 2 Largest 5 | 2 2 2 3 3 3 3 3 3 3 3 5 . 5 4 4 3 1 3 3 3 3 3 3 1 2 3 3 1 1 Hottest 390 | 90 100 70 100 75 120 80 73 74 120 123 343 . 343 243 298 229 10 239 203 166 390 192 254 105 188 221 276 10 94 Shots Fired 2143 | 26 8 38 241 18 96 70 134 149 183 12 158 . 55 5 109 11 7 39 121 37 133 68 47 13 106 132 120 5 2 Gun 1517 | 26 8 38 232 18 91 70 134 145 162 11 158 . 49 5 101 6 . 16 49 28 103 22 19 . . . 26 . . Cannon 509 | . . . . . 4 . . . 21 1 . . 2 . . 3 . 18 65 9 23 42 26 13 92 117 72 . 1 Launcher 29 | . . . . . 1 . . 4 . . . . 4 . 6 . . 1 4 . 3 . . . . . 5 1 . Special 88 | . . . 9 . . . . . . . . . . . 2 2 7 4 3 . 4 4 2 . 14 15 17 4 1 Kinetic 1304 | . . 34 232 18 91 70 134 145 162 3 91 . 9 2 33 . . . 36 28 102 30 19 . 15 37 13 . . Thermal 649 | 26 8 4 9 . 4 . . . 21 1 36 . 40 3 68 9 . 34 70 9 25 34 26 13 71 80 57 1 . Explosive 9 | . . . . . 1 . . 4 . . . . 4 . . . . . . . . . . . . . . . . Electromagnetic 110 | . . . . . . . . . . 8 31 . 2 . 6 . . 1 12 . 3 . . . 6 . 40 . 1 Robot Hit Streak 39 | 5 3 4 16 6 21 8 12 15 21 26 27 . 28 7 25 10 12 7 30 10 19 16 21 5 39 14 11 6 7 Robot Miss Streak 5 | 2 2 5 3 2 5 3 4 3 3 1 3 . 2 . 2 1 1 3 3 3 4 1 1 4 2 4 3 . . Penetration Max 2 | . . . . . . 1 . 1 . . . . . . . . . . . . 2 1 . . . . . . . Secondary Targets 27 | . 1 1 8 . . . 1 1 1 . 4 . 2 . 5 . . . 1 . 2 . . . . . . . . Max Gunslinging Chain 2 | . 1 1 2 . . . 1 1 1 . 2 . 1 . 1 . . . 1 . 1 . . . . . . . . Capacitor 52 | . . . . . . . . . . . . . . . . . . . . . . . . . . . 52 . . Shots Hit Robots 1359 | 15 4 16 153 8 63 47 92 79 124 6 129 . 35 2 69 7 6 22 75 17 80 53 38 7 72 57 74 8 1 Core Hits 642 | 8 3 7 63 5 26 8 29 39 29 2 70 . 26 1 63 4 . 19 57 10 39 15 8 3 17 22 44 24 1 Critical Kills 6 | . . . 1 . . . . . . . . . . . . . . 1 . . 1 1 . . 2 . . . . Critical Parts Destroyed 8 | . . . 1 . 2 1 . . . . . . . . . . . . . . 2 1 1 . . . . . . Critical Strikes 39 | . . 1 2 . 2 10 . . 1 1 . . . . . . . 2 1 . 3 4 1 . 5 3 3 . . Burn 4 | . . 1 . . . . . . . . . . . . . . . 1 1 . . 1 . . . . . . . Meltdown 3 | . . . . . . . . . . . . . . . . . . 1 . . . . . . 2 . . . . Destroy 21 | . . . 2 . 2 10 . . 1 . . . . . . . . . . . 3 2 1 . . . . . . Blast 9 | . . . . . . . . . . . . . . . . . . . . . . 1 . . 3 3 2 . . Corrupt 2 | . . . . . . . . . . 1 . . . . . . . . . . . . . . . . 1 . . Melee Attacks 64 | . . . . . . . . . . . 2 . 30 . 11 . . . . . . . . . . . 14 7 . Kinetic 6 | . . . . . . . . . . . . . . . . . . . . . . . . . . . 6 . . Impact 43 | . . . . . . . . . . . 2 . 30 . 11 . . . . . . . . . . . . . . Slashing 15 | . . . . . . . . . . . . . . . . . . . . . . . . . . . 8 7 . Piercing . | . . . . . . . . . . . . . . . . . . . . . . . . . . . . . . Sneak Attacks . | . . . . . . . . . . . . . . . . . . . . . . . . . . . . . . Combat Hostiles . | . . . . . . . . . . . . . . . . . . . . . . . . . . . . . . Follow-up Attacks . | . . . . . . . . . . . . . . . . . . . . . . . . . . . . . . Damage Inflicted 56648 | 175 53 142 1841 148 1292 799 1461 2098 1437 127 2256 . 1198 43 2298 149 . 694 2592 599 2598 1575 1100 249 2364 2014 3177 24145 24 Guns 17767 | 173 53 142 1831 148 1042 791 1429 1383 1061 127 2160 . 733 43 1585 149 . 237 859 438 2013 526 397 . . . 447 . . Cannons 10028 | . . . . . 134 . . . 375 . . . . . . . . 284 1045 161 185 1049 703 249 2347 1985 1511 . . Explosions 27765 | . . . . . 116 . . 715 . . 96 . 465 . 691 . . 173 688 . 343 . . . . . 674 23804 . Melee 603 | . . . . . . . . . . . . . . . . . . . . . . . . . . . 262 341 . Ramming 151 | 2 . . 10 . . 8 32 . 1 . . . . . 22 . . . . . . . . . 17 29 6 . 24 Kinetic 15987 | . . 115 1831 148 1042 791 1429 1383 1061 52 1249 . 99 25 294 . . . 626 438 2058 793 330 . 486 1130 607 . . Thermal 34720 | 173 53 27 . . 134 . . . 375 . 580 . 634 18 1291 149 . 521 1062 161 197 782 770 249 1655 855 1230 23804 . Explosive 1296 | . . . . . 116 . . 715 . . . . 465 . . . . . . . . . . . . . . . . Electromagnetic 4153 | . . . . . . . . . . 75 427 . . . 691 . . 173 904 . 343 . . . 206 . 1334 . . Impact . | . . . . . . . . . . . . . . . . . . . . . . . . . . . . . . Slashing 341 | . . . . . . . . . . . . . . . . . . . . . . . . . . . . 341 . Piercing . | . . . . . . . . . . . . . . . . . . . . . . . . . . . . . . Highest Corruption 41 | . . . . . . . . . . . 1 . . . 11 . 18 19 37 37 41 3 3 . 1 4 28 31 33 Average Corruption 16 | . . . . . . . . . . . 1 . . . 4 . 11 18 23 37 40 2 3 . 1 2 15 29 31 Corruption Purged 4 | . . . . . . . . . . . . . . . . . . . . . . . . . . 4 . . . Corruption Blocked . | . . . . . . . . . . . . . . . . . . . . . . . . . . . . . . Effects 384 | . . . . . . . . . . . 2 . . . 34 . 7 31 54 22 68 1 10 . 8 5 124 15 3 Message Errors 96 | . . . . . . . . . . . . . . . 8 . 3 11 10 6 17 . 1 . 3 2 31 4 . Matter Fused 82 | . . . . . . . . . . . 2 . . . 5 . . 6 11 4 16 . 4 . 1 1 30 2 . Heat Flow Errors 39 | . . . . . . . . . . . . . . . 1 . 2 2 3 2 9 . . . . 1 18 1 . Energy Discharges 52 | . . . . . . . . . . . . . . . 8 . . 4 7 2 9 . 2 . 2 1 16 . 1 Parts Rejected 2 | . . . . . . . . . . . . . . . . . . . 1 . . . . . . . 1 . . Parts Fused 4 | . . . . . . . . . . . . . . . . . . . 3 . . . . . . . 1 . . Data Loss (minor) 41 | . . . . . . . . . . . . . . . 8 . . 2 10 . 7 . 1 . . . 13 . . Data Loss (major) 20 | . . . . . . . . . . . . . . . . . 1 2 3 4 3 . 2 . 2 . 1 2 . Misfires 12 | . . . . . . . . . . . . . . . 3 . . 1 1 2 2 . . . . . 3 . . Alerts 7 | . . . . . . . . . . . . . . . 1 . . 3 . 1 . 1 . . . . 1 . . Misdirections 15 | . . . . . . . . . . . . . . . . . 1 . . . 1 . . . . . 5 6 2 Weapon Failures 14 | . . . . . . . . . . . . . . . . . . . 5 1 4 . . . . . 4 . . Overload Shots . | . . . . . . . . . . . . . . . . . . . . . . . . . . . . . . Overflow Damage 2679 | . . . . . . . 6 36 . . . . 5 . . . . . 49 1 . 35 36 9 71 . 69 2362 . Projectiles 257 | . . . . . . . . . . . . . . . . . . . 36 1 . 35 36 9 71 . 69 . . Explosions 2405 | . . . . . . . . 36 . . . . 5 . . . . . 13 . . . . . . . . 2351 . Melee 17 | . . . . . . . 6 . . . . . . . . . . . . . . . . . . . . 11 . Knockbacks 20 | . . . . . . 1 . . . . . . . . . . . . 3 . . 6 1 . 1 5 3 . . Impact 2 | . . . . . . 1 . . . . . . . . . . . . . . . . . . 1 . . . . Kinetic 18 | . . . . . . . . . . . . . . . . . . . 3 . . 6 1 . . 5 3 . . Secondary . | . . . . . . . . . . . . . . . . . . . . . . . . . . . . . . Self-Inflicted Damage 953 | . . . . . . . 15 14 . . 68 . . . 8 . . . 89 . 14 . . . 4 . 8 722 11 Shots 15 | . . . . . . . . 1 . . 2 . . . 1 . . . 7 . 2 . . . . . 1 1 . Rammed 23 | . . 1 3 . . 1 2 . 1 . . . . . 2 . . . . . . . . . 2 5 1 . 5 Targets Rammed 25 | 1 . 1 3 . . 2 2 . 1 . . . . . 2 . . . . . . . . . 2 5 1 . 5 Kicked 1 | 1 . . . . . . . . . . . . . . . . . . . . . . . . . . . . . Crushed 1 | . . . . . . 1 . . . . . . . . . . . . . . . . . . . . . . . Highest Temperature 494 | 150 156 40 106 136 252 66 321 37 306 198 240 . 191 159 341 182 253 308 253 306 339 341 494 72 278 448 374 349 12 Average Temperature 87 | 58 79 21 26 61 79 31 111 7 124 84 74 . 98 82 89 72 115 71 108 130 93 109 97 26 73 89 108 133 7 Received Heat Transfer 6641 | . . . 273 . . 1660 225 261 1332 . 78 . . . 446 12 . 18 198 27 516 57 427 . 25 397 45 422 222 Effects 10 | . . . . . . . 2 . 1 . . . . . . . . . . 1 . . 1 . . . 4 1 . Shutdowns 1 | . . . . . . . 1 . . . . . . . . . . . . . . . . . . . . . . Energy Bleed 2 | . . . . . . . . . . . . . . . . . . . . 1 . . . . . . 1 . . Interference 6 | . . . . . . . 1 . 1 . . . . . . . . . . . . . . . . . 3 1 . Matter Decay 1 | . . . . . . . . . . . . . . . . . . . . . . . 1 . . . . . . Siege Activations 22 | . . . . . . . . . . . . . . . . . . 1 2 1 6 . . . 2 3 7 . . Total Turns 252 | . . . . . . . . . . . . . . . . . . 3 46 16 75 . . . 19 26 67 . . Longest Duration 31 | . . . . . . . . . . . . . . . . . . 3 24 16 31 . . . 10 19 17 . . Martial Activations . | . . . . . . . . . . . . . . . . . . . . . . . . . . . . . . Shielding Activations . | . . . . . . . . . . . . . . . . . . . . . . . . . . . . . . Robots Disrupted 2 | . . . . . . . . . . . . . . . . . . . 1 . . . . . . . 1 . . Combat Hostiles 2 | . . . . . . . . . . . . . . . . . . . 1 . . . . . . . 1 . . Robots Corrupted 19 | . . . . . . . 1 . . . . . . . 3 . . . 2 . 3 . . . 1 . 9 . . Combat Hostiles 18 | . . . . . . . . . . . . . . . 3 . . . 2 . 3 . . . 1 . 9 . . Parts Fried 39 | . . . . . . . 1 . . 1 2 . . . 6 . . 1 4 . 4 . . . 4 . 16 . . Impact Corruptions 1 | . . . . . . . 1 . . . . . . . . . . . . . . . . . . . . . . Robots Melted 12 | . . . . . . . . . . . . . . . 3 1 . 2 1 . 1 1 . . 2 . 1 . . Combat Hostiles 9 | . . . . . . . . . . . . . . . 3 1 . 2 . . 1 1 . . . . 1 . . Parts Melted 39 | 1 . . . . . . . . . . 3 . 5 . 11 1 . 8 2 . 2 . . . 1 . 5 . . Heat Transferred 18808 | 435 148 148 . . 320 . . . 420 . 1200 . 1333 37 2547 312 . 932 2093 250 517 1331 1030 259 1702 814 2740 240 . Parts Sabotaged 1 | . . . . . . . . 1 . . . . . . . . . . . . . . . . . . . . . Parts Stolen . | . . . . . . . . . . . . . . . . . . . . . . . . . . . . . . Parts Stripped 15 | . . . . . . . . . . . . . . . . . . . . . . . . . . . 15 . . Power Chain Reactions 3 | . . . . . . . . . . . 2 . . . . . . . 1 . . . . . . . . . . Alert | -11 -10 -10 -9 -9 -9 -8 -8 -8 -8 -7 -7 -6 -6 -6 -6 -5 -5 -5 -5 -5 -5 -4 -4 -3 -3 -3 -3 -3 -3 ------- Run | Yrd Mat Min Mat Min Exi Min Mat Gar Mat Fac Gar Fac Gar Fac Gar Fac Was Fac Gar Fac Gar Fac Gar Res Gar Res Qua Gar Sec Maximum Alert Level 4 | . . . 2 . . . . 3 2 . 2 1 4 2 3 2 . . 2 1 2 1 . . 3 2 . 4 3 Low Security (%) 56 | 100 100 100 61 100 . 100 100 24 56 100 58 63 21 . . . 100 100 29 1 2 39 100 100 54 38 100 58 . Level 1 18 | . . . 9 . . . . 20 32 . 38 36 35 . . 43 . . 10 98 38 60 . . 15 58 . . . Level 2 16 | . . . 29 . . . . 15 11 . 3 . 18 100 53 56 . . 59 . 58 . . . 22 3 . . . Level 3 7 | . . . . . . . . 38 . . . . 21 . 46 . . . . . . . . . 7 . . . 100 Level 4 . | . . . . . . . . . . . . . 2 . . . . . . . . . . . . . . 41 . Level 5 . | . . . . . . . . . . . . . . . . . . . . . . . . . . . . . . High Security . | . . . . . . . . . . . . . . . . . . . . . . . . . . . . . . Max Security . | . . . . . . . . . . . . . . . . . . . . . . . . . . . . . . Peak Influence 1508 | 10 102 75 486 162 . 16 129 981 521 15 415 217 1104 653 992 520 87 100 443 309 683 358 197 99 742 417 158 1508 799 Initial 787 | . . 35 . 162 . . . 52 477 . . 217 137 579 436 520 87 4 23 232 154 358 158 99 2 417 98 . 787 Average 244 | 1 43 17 194 123 . . 73 499 160 1 218 195 492 614 671 397 48 22 313 254 427 218 166 38 291 255 28 615 782 Influence Increases 10891 | 35 142 140 848 120 . 26 372 949 204 40 415 30 987 124 726 40 . 211 470 205 629 360 88 56 910 512 700 1540 12 Destroy 0b10 Robot/C 5230 | . 60 120 560 100 . . 240 600 100 . 240 . 340 60 470 15 . 120 315 90 345 180 60 . 330 210 315 360 . Destroy 0b10 Robot/NC 310 | 35 . . 35 . . 5 10 . 20 10 30 . 5 . . . . 16 8 12 . 24 4 12 12 24 12 36 . Destroy Leader 762 | . 10 20 138 20 . . 82 20 16 2 20 . 10 10 58 8 . 18 24 24 40 36 8 . 24 68 82 24 . Allied During Kill 397 | . . . . . . . . 27 17 . . . 22 24 . . . . . 15 33 32 6 . 166 36 19 . . Successful Hack 197 | . 27 . 16 . . . 6 14 . 12 . . 14 . . 11 . 27 11 . . 9 . 11 17 6 16 . . Select Force Hacks 106 | . . . . . . . . . . . . 30 . 30 . . . . . . . 23 . 23 . . . . . Disable Machine 402 | . . . 30 . . 15 15 . 15 15 . . . . . . . 12 12 36 24 36 . . . 12 156 12 12 Anti-Garrison Action 1291 | . . . . . . . . 200 . . 100 . 500 . 113 . . . . . 151 . . . 227 . . . . Destroy Structure 1758 | . . . 9 . . 6 4 73 6 1 25 . 96 . 40 6 . 18 52 28 36 20 10 10 62 96 64 1096 . Partial Spotted 12 | . . . . . . . . . . . . . . . . . . . . . . . . . . . 12 . . Lose Combat Pursuer 426 | . 45 . 60 . . . 15 15 30 . . . . . 45 . . . 48 . . . . . 72 60 24 12 . Influence Decreases 10202 | 35 50 232 432 444 92 26 292 48 1185 40 . 248 80 605 357 782 243 184 61 427 167 817 138 229 171 1079 875 140 723 Entered New Map 4318 | . . 57 . 254 92 . . 28 504 . . 198 60 525 187 472 163 3 11 211 67 325 68 77 1 325 77 . 613 Time Decay 3840 | 35 50 165 432 190 . 15 262 . 246 40 . 50 . 70 . 150 80 161 . 206 . 392 . 152 . 494 640 . 10 Lost Part 829 | . . 10 . . . 11 30 . 95 . . . . 10 110 . . . 30 10 80 40 50 . 10 80 83 100 80 Lost Ally 765 | . . . . . . . . 20 40 . . . 20 . 60 10 . 20 20 . 20 60 20 . 160 180 75 40 20 Purge Threat 450 | . . . . . . . . . 300 . . . . . . 150 . . . . . . . . . . . . . Squads Dispatched 44 | . . . 2 . . . 4 . 3 2 . 1 . 1 . 1 . 2 . 2 . 8 . 1 . 10 4 . 3 Investigation 10 | . . . . . . . 2 . . 1 . 1 . 1 . . . . . 1 . 2 . 1 . . 1 . . Extermination 10 | . . . . . . . . . . 1 . . . . . . . 2 . . . 1 . . . 3 3 . . Reinforcement 21 | . . . 1 . . . 1 . 3 . . . . . . 1 . . . 1 . 4 . . . 7 . . 3 Assault 1 | . . . 1 . . . . . . . . . . . . . . . . . . . . . . . . . . Garrison 2 | . . . . . . . 1 . . . . . . . . . . . . . . 1 . . . . . . . Intercept . | . . . . . . . . . . . . . . . . . . . . . . . . . . . . . . Searches Triggered . | . . . . . . . . . . . . . . . . . . . . . . . . . . . . . . Construction Impeded 4 | . . . . . . . . . . . . . . . . . . . . 1 . 1 . . . 2 . . . Haulers Reinforced 2 | . . . . . . . . . . . . . . . . . . . . . . 1 . . . 1 . . . Active Scanning Responses . | . . . . . . . . . . . . . . . . . . . . . . . . . . . . . . Cargo Convoy Interrupts 1 | . . . . . . . . . . . . . . . . . . 1 . . . . . . . . . . . Alert ID Control Effect 3 | . . . . . . . . . . . . . . . . . . . . . . . . . . . . 3 . Stealth | -11 -10 -10 -9 -9 -9 -8 -8 -8 -8 -7 -7 -6 -6 -6 -6 -5 -5 -5 -5 -5 -5 -4 -4 -3 -3 -3 -3 -3 -3 --------- Run | Yrd Mat Min Mat Min Exi Min Mat Gar Mat Fac Gar Fac Gar Fac Gar Fac Was Fac Gar Fac Gar Fac Gar Res Gar Res Qua Gar Sec Distress Signals 16 | . 1 . 3 . . . . 1 2 . . . . . . . . 1 . . . . . . . 7 1 . . Communications Jammed 62 | . . . . . . . . 12 . . . . 9 . . . . . . . . . . . . 23 16 . 2 Distress Signals 62 | . . . . . . . . 12 . . . . 9 . . . . . . . . . . . . 23 16 . 2 Times Spotted 501 | . 5 6 42 5 97 1 19 32 15 . 13 . 19 3 29 1 4 10 29 7 25 18 5 2 30 28 35 12 9 Peak Tracking Total 11 | . 5 3 8 3 11 1 4 10 4 . 4 . 4 3 7 1 1 5 8 5 4 4 3 2 6 7 6 9 8 Tactical Retreats 68 | . 1 . 3 . 47 . 1 1 2 . . . . . 1 . . . 4 . . . . . 3 2 2 1 . Traps | -11 -10 -10 -9 -9 -9 -8 -8 -8 -8 -7 -7 -6 -6 -6 -6 -5 -5 -5 -5 -5 -5 -4 -4 -3 -3 -3 -3 -3 -3 ------- Run | Yrd Mat Min Mat Min Exi Min Mat Gar Mat Fac Gar Fac Gar Fac Gar Fac Was Fac Gar Fac Gar Fac Gar Res Gar Res Qua Gar Sec Traps Triggered 51 | . . . . . . . 1 5 . 2 4 . 9 1 7 2 . . . . 4 1 3 . 3 2 3 4 . Indirectly . | . . . . . . . . . . . . . . . . . . . . . . . . . . . . . . Trap Hack Attempts . | . . . . . . . . . . . . . . . . . . . . . . . . . . . . . . Triggered . | . . . . . . . . . . . . . . . . . . . . . . . . . . . . . . Disarmed . | . . . . . . . . . . . . . . . . . . . . . . . . . . . . . . Reprogrammed . | . . . . . . . . . . . . . . . . . . . . . . . . . . . . . . Reused . | . . . . . . . . . . . . . . . . . . . . . . . . . . . . . . Traps Extracted . | . . . . . . . . . . . . . . . . . . . . . . . . . . . . . . Installed . | . . . . . . . . . . . . . . . . . . . . . . . . . . . . . . Triggered . | . . . . . . . . . . . . . . . . . . . . . . . . . . . . . . Machines | -11 -10 -10 -9 -9 -9 -8 -8 -8 -8 -7 -7 -6 -6 -6 -6 -5 -5 -5 -5 -5 -5 -4 -4 -3 -3 -3 -3 -3 -3 ---------- Run | Yrd Mat Min Mat Min Exi Min Mat Gar Mat Fac Gar Fac Gar Fac Gar Fac Was Fac Gar Fac Gar Fac Gar Res Gar Res Qua Gar Sec Machines Disabled 49 | . . . 3 . 4 1 1 2 1 1 1 . 1 . 1 . . 1 1 3 4 3 . . 5 1 13 1 1 Max in Single Turn 1 | . . . 1 . 1 1 1 1 . 1 1 . 1 . 1 . . 1 1 1 1 1 . . 1 1 1 1 1 Garrison Relay 11 | . . . . . . . . 2 . . 1 . . . 1 . . . 1 . 2 . . . 4 . . . . Machines Repaired . | . . . . . . . . . . . . . . . . . . . . . . . . . . . . . . Machines Dismantled . | . . . . . . . . . . . . . . . . . . . . . . . . . . . . . . Machines Sabotaged . | . . . . . . . . . . . . . . . . . . . . . . . . . . . . . . Overloaded Fab Kills . | . . . . . . . . . . . . . . . . . . . . . . . . . . . . . . Hacking | -11 -10 -10 -9 -9 -9 -8 -8 -8 -8 -7 -7 -6 -6 -6 -6 -5 -5 -5 -5 -5 -5 -4 -4 -3 -3 -3 -3 -3 -3 --------- Run | Yrd Mat Min Mat Min Exi Min Mat Gar Mat Fac Gar Fac Gar Fac Gar Fac Was Fac Gar Fac Gar Fac Gar Res Gar Res Qua Gar Sec Machines Accessed 59 | . 2 1 4 . 2 . 3 2 2 2 1 1 2 1 1 5 . 9 1 1 1 3 . 3 3 2 6 1 . Terminals 30 | . 2 . 2 . . . . 2 1 1 1 . 2 . 1 2 . 3 1 . 1 1 . 1 3 1 4 1 . Fabricators 6 | . . . . . . . . . . . . . . . . 2 . 2 . . . 1 . . . 1 . . . Repair Stations 6 | . . . 1 . . . 2 . 1 . . . . . . . . 1 . . . . . . . . 1 . . Recycling Units 5 | . . . 1 . . . . . . . . . . . . 1 . 2 . . . . . 1 . . . . . Scanalyzers . | . . . . . . . . . . . . . . . . . . . . . . . . . . . . . . Garrison Access 9 | . . . . . . . 1 . . 1 . 1 . 1 . . . 1 . 1 . 1 . 1 . . 1 . . Total Hacks 151 | . 6 1 12 . 24 . 7 3 7 6 4 2 2 3 1 10 . 21 1 4 2 8 . 6 4 3 12 2 . Successful 90 | . 4 1 9 . 24 . 5 2 4 3 . 2 1 3 . 2 . 9 1 1 . 4 . 5 2 2 6 . . Failed 61 | . 2 . 3 . . . 2 1 3 3 4 . 1 . 1 8 . 12 . 3 2 4 . 1 2 1 6 2 . Catastrophic 18 | . 1 . 1 . . . . . 2 . 1 . 1 . 1 4 . 1 . 1 . 2 . . 1 . 2 . . Database Lockouts . | . . . . . . . . . . . . . . . . . . . . . . . . . . . . . . Manual 35 | . 4 . 6 . 1 . . . . 2 . 1 . 1 . 3 . 5 . 3 . 4 . 3 . 1 1 . . Terminals 65 | . 6 . 5 . . . . 3 5 4 4 . 2 . 1 6 . 6 1 . 2 2 . 2 4 1 9 2 . Fabricators 12 | . . . . . . . . . . . . . . . . 3 . 4 . . . 3 . . . 2 . . . Repair Stations 13 | . . . 4 . . . 5 . 2 . . . . . . . . 1 . . . . . . . . 1 . . Recycling Units 13 | . . . 3 . . . . . . . . . . . . 1 . 8 . . . . . 1 . . . . . Scanalyzers . | . . . . . . . . . . . . . . . . . . . . . . . . . . . . . . Garrison Access 23 | . . . . . . . 2 . . 2 . 2 . 3 . . . 2 . 4 . 3 . 3 . . 2 . . Terminal Hacks 49 | . 4 1 2 . 24 . . 2 2 2 . . 1 . . 2 . 2 1 . . . . . 2 1 3 . . Record 25 | . . . . . 23 . . . . . . . . . . . . . . . . . . . . . 2 . . Robot Analysis 1 | . 1 . . . . . . . . . . . . . . . . . . . . . . . . . . . . Prototype ID Bank 1 | . . . 1 . . . . . . . . . . . . . . . . . . . . . . . . . . Open Door 5 | . . 1 . . . . . 1 . . . . . . . . . . . . . . . . 1 1 1 . . Emergency Access Points 5 | . . . . . . . . 1 . . . . 1 . . . . 1 1 . . . . . 1 . . . . Unreport Threat 3 | . . . . . . . . . 2 . . . . . . 1 . . . . . . . . . . . . . Locate Traps 1 | . 1 . . . . . . . . . . . . . . . . . . . . . . . . . . . . Maintenance Status 1 | . 1 . . . . . . . . . . . . . . . . . . . . . . . . . . . . Patrol Status 1 | . . . . . . . . . . . . . . . . . . 1 . . . . . . . . . . . Hauler Manifests 2 | . 1 . 1 . . . . . . . . . . . . . . . . . . . . . . . . . . Registered Components 1 | . . . . . . . . . . 1 . . . . . . . . . . . . . . . . . . . Zone Layout 2 | . . . . . . . . . . 1 . . . . . 1 . . . . . . . . . . . . . Proto ID Catalog 1 | . . . . . 1 . . . . . . . . . . . . . . . . . . . . . . . . Fabricator Hacks 2 | . . . . . . . . . . . . . . . . . . 1 . . . . . . . 1 . . . Network Status 2 | . . . . . . . . . . . . . . . . . . 1 . . . . . . . 1 . . . Repair Station Hacks 10 | . . . 4 . . . 4 . 2 . . . . . . . . . . . . . . . . . . . . Scan Component 5 | . . . 2 . . . 2 . 1 . . . . . . . . . . . . . . . . . . . . Repair 5 | . . . 2 . . . 2 . 1 . . . . . . . . . . . . . . . . . . . . Recycling Unit Hacks 4 | . . . 1 . . . . . . . . . . . . . . 2 . . . . . 1 . . . . . Retrieve Components 4 | . . . 1 . . . . . . . . . . . . . . 2 . . . . . 1 . . . . . Scanalyzer . | . . . . . . . . . . . . . . . . . . . . . . . . . . . . . . Garrison Access Hacks 14 | . . . . . . . 1 . . 1 . 1 . 2 . . . 2 . 1 . 2 . 2 . . 2 . . Unlock Access 9 | . . . . . . . 1 . . 1 . 1 . 1 . . . 1 . 1 . 1 . 1 . . 1 . . Coupler Status 5 | . . . . . . . . . . . . . . 1 . . . 1 . . . 1 . 1 . . 1 . . Unauthorized Hacks 11 | . . . 2 . . . . . . . . 1 . 1 . . . 2 . . . 2 . 2 . . 1 . . Terminals 1 | . . . . . . . . . . . . . . . . . . . . . . . . 1 . . . . . Botnet 1 | . . . . . . . . . . . . . . . . . . . . . . . . 1 . . . . . Fabricators 2 | . . . . . . . . . . . . . . . . . . 1 . . . 1 . . . . . . . Liberate 2 | . . . . . . . . . . . . . . . . . . 1 . . . 1 . . . . . . . Repair Stations 1 | . . . . . . . . . . . . . . . . . . . . . . . . . . . 1 . . Patch 1 | . . . . . . . . . . . . . . . . . . . . . . . . . . . 1 . . Recycling Units 3 | . . . 2 . . . . . . . . . . . . . . 1 . . . . . . . . . . . Reject 1 | . . . 1 . . . . . . . . . . . . . . . . . . . . . . . . . . Recyclers 2 | . . . 1 . . . . . . . . . . . . . . 1 . . . . . . . . . . . Scanalyzers . | . . . . . . . . . . . . . . . . . . . . . . . . . . . . . . Garrison Access 4 | . . . . . . . . . . . . 1 . 1 . . . . . . . 1 . 1 . . . . . Eject 4 | . . . . . . . . . . . . 1 . 1 . . . . . . . 1 . 1 . . . . . Data Cores Recovered . | . . . . . . . . . . . . . . . . . . . . . . . . . . . . . . Used . | . . . . . . . . . . . . . . . . . . . . . . . . . . . . . . Hacking Detections 42 | . 3 . 3 . . . 2 1 1 2 1 1 1 1 1 5 . 7 . 1 1 2 . 2 1 1 4 1 . Full Trace Events 4 | . . . . . . . 1 . . . 1 . . . . . . . . 1 . 1 . . . . . . . Feedback Events 1 | . . . . . . . . . . . 1 . . . . . . . . . . . . . . . . . . Corruption 1 | . . . . . . . . . . . 1 . . . . . . . . . . . . . . . . . . Feedback Blocked . | . . . . . . . . . . . . . . . . . . . . . . . . . . . . . . Robot Schematics Acquired . | . . . . . . . . . . . . . . . . . . . . . . . . . . . . . . Robots Built . | . . . . . . . . . . . . . . . . . . . . . . . . . . . . . . Authchips . | . . . . . . . . . . . . . . . . . . . . . . . . . . . . . . Time . | . . . . . . . . . . . . . . . . . . . . . . . . . . . . . . Total Robot Build Rating . | . . . . . . . . . . . . . . . . . . . . . . . . . . . . . . Part Schematics Acquired . | . . . . . . . . . . . . . . . . . . . . . . . . . . . . . . Parts Built . | . . . . . . . . . . . . . . . . . . . . . . . . . . . . . . Authchips . | . . . . . . . . . . . . . . . . . . . . . . . . . . . . . . Time . | . . . . . . . . . . . . . . . . . . . . . . . . . . . . . . Total Part Build Rating . | . . . . . . . . . . . . . . . . . . . . . . . . . . . . . . Parts Repaired 5 | . . . 2 . . . 2 . 1 . . . . . . . . . . . . . . . . . . . . Time 208 | . . . 52 . . . 100 . 56 . . . . . . . . . . . . . . . . . . . . Parts Recycled . | . . . . . . . . . . . . . . . . . . . . . . . . . . . . . . Recycled Matter . | . . . . . . . . . . . . . . . . . . . . . . . . . . . . . . Retrieved Matter . | . . . . . . . . . . . . . . . . . . . . . . . . . . . . . . Retrieved Components 15 | . . . 10 . . . . . . . . . . . . . . 3 . . . . . 2 . . . . . Parts Scanalyzed . | . . . . . . . . . . . . . . . . . . . . . . . . . . . . . . Part Schematics Acquired . | . . . . . . . . . . . . . . . . . . . . . . . . . . . . . . Parts Damaged . | . . . . . . . . . . . . . . . . . . . . . . . . . . . . . . Bothacking | -11 -10 -10 -9 -9 -9 -8 -8 -8 -8 -7 -7 -6 -6 -6 -6 -5 -5 -5 -5 -5 -5 -4 -4 -3 -3 -3 -3 -3 -3 ------------ Run | Yrd Mat Min Mat Min Exi Min Mat Gar Mat Fac Gar Fac Gar Fac Gar Fac Was Fac Gar Fac Gar Fac Gar Res Gar Res Qua Gar Sec Used RIF Installer 10 | . . . . . . . . 1 . . 2 . 1 . 1 . . . 1 . 1 . 1 . 1 . . 1 . Coupler Efficiency 1 | . . . . . . . . . . . . . . . . . . . 1 . . . . . . . . . . Hotswap 1 | . . . . . . . . . . . . . . . . . . . . . . . 1 . . . . . . Threat Obfuscator 1 | . . . . . . . . . . . . . . . 1 . . . . . . . . . . . . . . Zone Cloak 2 | . . . . . . . . . . . 1 . 1 . . . . . . . . . . . . . . . . Robot Detection 1 | . . . . . . . . . . . 1 . . . . . . . . . . . . . . . . . . Alert ID Control 1 | . . . . . . . . . . . . . . . . . . . . . . . . . . . . 1 . Program Shield 1 | . . . . . . . . . . . . . . . . . . . . . 1 . . . . . . . . Autoassimilate 1 | . . . . . . . . . . . . . . . . . . . . . . . . . 1 . . . . Robots Hacked 42 | . . . . . . . . . . . . . . . 2 1 6 2 2 . 1 3 1 . 6 12 4 2 . Non-combat 8 | . . . . . . . . . . . . . . . . 1 . 2 . . . . . . . 4 1 . . Combat 34 | . . . . . . . . . . . . . . . 2 . 6 . 2 . 1 3 1 . 6 8 3 2 . Autoassimilated 2 | . . . . . . . . . . . . . . . . . . . . . . . . . . 2 . . . Robot Hacks Applied 41 | . . . . . . . . . . . . . . . 2 1 6 2 2 . 1 3 1 . 7 10 4 2 . parse_system 1 | . . . . . . . . . . . . . . . . . . . . . . . . . . 1 . . . drop_inventory 3 | . . . . . . . . . . . . . . . . . . 1 . . . . . . . 2 . . . reprogram_traps 1 | . . . . . . . . . . . . . . . . . . 1 . . . . . . . . . . . block_reporting 1 | . . . . . . . . . . . . . . . . . . . . . . . . . . . 1 . . disable_scanner 1 | . . . . . . . . . . . . . . . . . . . . . . . . . . . 1 . . ignore_targets 6 | . . . . . . . . . . . . . . . . . 6 . . . . . . . . . . . . amplify_resonance 10 | . . . . . . . . . . . . . . . 2 . . . . . 1 1 . . 5 1 . . . reboot_system 1 | . . . . . . . . . . . . . . . . . . . . . . . . . . 1 . . . overwrite_iff 4 | . . . . . . . . . . . . . . . . . . . 1 . . . 1 . 1 1 . . . formatsys_low 1 | . . . . . . . . . . . . . . . . 1 . . . . . . . . . . . . . formatsys_high 12 | . . . . . . . . . . . . . . . . . . . 1 . . 2 . . 1 4 2 2 . Relay Couplers Released 59 | . . . . . . . . 8 . . 5 3 . 4 4 . . . 3 . 9 3 . 4 16 . . . . Ejected 14 | . . . . . . . . . . . . 3 . 4 . . . . . . . 3 . 4 . . . . . Machine Destruction 45 | . . . . . . . . 8 . . 5 . . . 4 . . . 3 . 9 . . . 16 . . . . Attached 21 | . . . . . . . . . . . 1 . 1 . 1 1 . . 1 . 4 3 . 1 6 1 1 . . Fabnet Peak Effective % . | . . . . . . . . . . . . . . . . . . . . . . . . . . . . . . Robots Rewired 15 | . . . . . . . . 1 . . . . 6 . . . . . . . . . . . 8 . . . . Allies Hacked 2 | . . . . . . . . . . . . . . . 1 . . 1 . . . . . . . . . . . Hacks Repelled . | . . . . . . . . . . . . . . . . . . . . . . . . . . . . . . Allies | -11 -10 -10 -9 -9 -9 -8 -8 -8 -8 -7 -7 -6 -6 -6 -6 -5 -5 -5 -5 -5 -5 -4 -4 -3 -3 -3 -3 -3 -3 -------- Run | Yrd Mat Min Mat Min Exi Min Mat Gar Mat Fac Gar Fac Gar Fac Gar Fac Was Fac Gar Fac Gar Fac Gar Res Gar Res Qua Gar Sec Total Allies 47 | . . . . 2 . . . 3 . . . . 6 . . 1 . 2 2 . . 4 1 . 12 7 4 2 1 Largest Group 7 | . . . . 2 2 . . 2 2 . . . 4 4 3 1 . 2 1 1 1 3 2 . 7 3 2 2 . Highest-Rated Group 459 | . . . . 38 38 . . 51 51 . . . 105 117 77 23 . 82 49 49 49 154 94 . 459 220 290 111 . Highest-Rated Ally 145 | . . . . 31 31 . . 31 31 . . . 30 30 29 23 . 41 49 49 49 56 47 . 95 92 145 64 . Total Orders 6 | . . . . . . 5 . . . . . . . . . 1 . . . . . . . . . . . . . AID 1 | . . . . . . . . . . . . . . . . 1 . . . . . . . . . . . . . RETURN 5 | . . . . . . 5 . . . . . . . . . . . . . . . . . . . . . . . Ally Attacks 357 | . . . . . 16 15 . 13 24 . . . 14 4 4 . . . 1 9 12 37 20 . 83 63 32 10 . Total Damage 10142 | . . . . . 105 102 . 224 357 . . . 293 56 125 . . . 18 363 346 1261 714 . 2753 1558 1622 245 . Kills 58 | . . . . . . . . 2 3 . . . 6 2 . . . . . 2 4 7 3 . 15 8 3 3 . Allies Corrupted 3 | . . . . . . . . . . . . . . . . . . . . . . 1 . . . 1 1 . . Allies Melted 2 | . . . . . . 1 . . . . . . . . . . . . . . . . . . . . . 1 . Field Lobotomies 3 | . . . . . . . . . . . . . . . . . . . . . . . . . . . 2 . 1 Intel | -11 -10 -10 -9 -9 -9 -8 -8 -8 -8 -7 -7 -6 -6 -6 -6 -5 -5 -5 -5 -5 -5 -4 -4 -3 -3 -3 -3 -3 -3 ------- Run | Yrd Mat Min Mat Min Exi Min Mat Gar Mat Fac Gar Fac Gar Fac Gar Fac Was Fac Gar Fac Gar Fac Gar Res Gar Res Qua Gar Sec Active Infowar (turns) 9376 | 194 66 740 651 . . . 178 243 356 354 707 109 1574 148 982 119 . . . . 142 . . . . 936 1731 121 25 Sensors 806 | . . . . . . . . . . 354 1 . . . . . . . . . . . . . . . 451 . . Terrain 749 | . . . . . . . . . . . . . . . . . . . . . . . . . . 746 3 . . Seismic 1651 | 194 66 740 651 . . . . . . . . . . . . . . . . . . . . . . . . . . Jamming 6816 | . . . . . . . 178 243 356 . 706 109 1574 148 982 119 . . . . 142 . . . . 831 1282 121 25 Robot Analysis Total 1 | . 1 . . . . . . . . . . . . . . . . . . . . . . . . . . . . Derelict Logs Recovered 2 | . . 1 . 1 . . . . . . . . . . . . . . . . . . . . . . . . . Drone Launches 15 | . . . . . 6 9 . . . . . . . . . . . . . . . . . . . . . . . Drone Recoveries 12 | . . . . . 6 6 . . . . . . . . . . . . . . . . . . . . . . . Exploration | -11 -10 -10 -9 -9 -9 -8 -8 -8 -8 -7 -7 -6 -6 -6 -6 -5 -5 -5 -5 -5 -5 -4 -4 -3 -3 -3 -3 -3 -3 ------------- Run | Yrd Mat Min Mat Min Exi Min Mat Gar Mat Fac Gar Fac Gar Fac Gar Fac Was Fac Gar Fac Gar Fac Gar Res Gar Res Qua Gar Sec Turns Passed 27533 | 223 117 799 1668 380 4943 548 666 1228 706 398 943 109 1574 148 1410 317 172 747 987 431 1213 929 447 344 1320 1300 3253 177 36 Spaces Moved 13238 | 73 60 472 799 218 2167 171 272 661 356 366 453 70 805 93 531 177 107 400 326 162 469 245 171 164 611 704 1940 161 34 Core . | . . . . . . . . . . . . . . . . . . . . . . . . . . . . . . Treads 5451 | . . 412 799 218 1478 171 90 1 5 . . . . . 431 177 107 400 326 73 1 . . . . . 762 . . Legs 2698 | 73 60 60 . . 689 . 8 . . 287 453 70 805 93 100 . . . . . . . . . . . . . . Wheels 4519 | . . . . . . . 174 660 351 79 . . . . . . . . . 89 468 245 171 164 611 704 803 . . Hover 570 | . . . . . . . . . . . . . . . . . . . . . . . . . . . 375 161 34 Flight . | . . . . . . . . . . . . . . . . . . . . . . . . . . . . . . Fastest Speed 40 | 120 120 120 160 160 120 240 130 145 115 90 90 150 150 150 150 155 155 155 155 173 142 155 155 170 142 131 40 40 60 Average Speed 164 | 120 120 154 160 160 206 240 182 145 136 98 132 150 152 150 218 155 155 155 204 230 198 232 181 184 154 143 134 48 60 Slowest Speed 410 | 120 120 160 160 160 320 240 320 312 232 130 150 150 210 150 232 155 155 155 240 320 330 335 320 215 170 161 410 102 60 Overloaded Moves . | . . . . . . . . . . . . . . . . . . . . . . . . . . . . . . Propulsion Burnouts . | . . . . . . . . . . . . . . . . . . . . . . . . . . . . . . Robots Hopped 1 | . . . . . . . . . . . . . 1 . . . . . . . . . . . . . . . . Potential Cave-ins 6 | . . . . . . . . . . . . . . . . . . . . . . . . . . 6 . . . Cave-ins Triggered . | . . . . . . . . . . . . . . . . . . . . . . . . . . . . . . Teleports 1 | . . . . . . . . . . . . . . . . . . . . . . . . . . . 1 . . Exploration Rate (%) 40 | 4 17 88 70 59 93 35 25 79 29 11 48 3 86 3 66 8 82 14 57 6 62 9 31 5 69 27 87 31 4 Regions Visited 29 Branch Regions 6 Pre-discovered Areas 3 | . . 1 . 1 1 . . . . . . . . . . . . . . . . . . . . . . . . Known Exits Taken 9 | . . . . . . . 1 . . 1 . 1 . 1 . . . 1 . 1 . 1 . 1 . . 1 . . Unknown Exits Taken 9 | 1 1 1 1 1 1 1 . . 1 . . . . . . . . . . . . . . . . 1 . . . Scrap Searched 2 | . . 1 . 1 . . . . . . . . . . . . . . . . . . . . . . . . . Spaces Dug 113 | . . . 7 . . . . 20 . 1 . . 16 . 4 3 . 8 . . . 3 . . 3 41 6 1 . Terrain Destroyed 1021 | . . . 8 . 7 23 . 22 5 1 6 . 53 . 4 3 . 9 4 20 9 6 3 5 13 64 25 731 . Melee 22 | . . . . . . . . . . . . . 14 . 4 . . . . . . . . . . . 3 1 . Projectile 193 | . . . 8 . 3 20 . . 4 1 . . . . . 3 . 9 3 20 9 6 3 5 13 64 22 . . AOE 802 | . . . . . 4 . . 22 . . 6 . 39 . . . . . 1 . . . . . . . . 730 . Terrain Rammed . | . . . . . . . . . . . . . . . . . . . . . . . . . . . . . . Walls Destroyed . | . . . . . . . . . . . . . . . . . . . . . . . . . . . . . . Machines Disabled . | . . . . . . . . . . . . . . . . . . . . . . . . . . . . . . Actions | -11 -10 -10 -9 -9 -9 -8 -8 -8 -8 -7 -7 -6 -6 -6 -6 -5 -5 -5 -5 -5 -5 -4 -4 -3 -3 -3 -3 -3 -3 --------- Run | Yrd Mat Min Mat Min Exi Min Mat Gar Mat Fac Gar Fac Gar Fac Gar Fac Was Fac Gar Fac Gar Fac Gar Res Gar Res Qua Gar Sec Total 17249 | 181 97 508 1032 240 2586 250 351 841 488 393 639 74 1046 98 671 208 113 498 537 188 639 550 267 192 893 876 2500 245 48 Wait 1479 | 93 28 . 71 13 306 9 1 25 6 . 34 . 9 . 9 9 . 52 97 7 44 233 37 . 85 21 266 24 . Move 13211 | 72 59 471 798 217 2166 170 272 660 355 366 452 69 802 92 529 177 106 399 325 162 468 244 170 163 610 703 1940 160 34 Hop 1 | . . . . . . . . . . . . . 1 . . . . . . . . . . . . . . . . Pick Up 203 | 1 1 3 19 2 25 6 8 8 6 6 11 2 5 1 16 3 . 5 6 3 6 3 1 9 10 4 32 1 . Fast Attach 153 | 1 . 3 6 . 4 5 3 2 12 4 6 1 4 1 3 1 . 1 4 2 11 8 . 4 8 14 44 . 1 Attach 128 | . 1 2 3 . 1 7 5 4 7 1 . . . . 12 1 . 1 11 . 8 15 7 1 1 9 26 4 1 Detach 76 | . 1 1 3 . . 2 3 1 3 . 1 . . . 2 . . 1 7 . 6 7 4 . 4 8 21 1 . Swap 201 | . 2 3 20 . 18 6 1 11 4 5 14 . 18 1 18 9 . 8 8 . 16 2 4 . 14 7 12 . . Drop 224 | . 1 5 21 2 28 9 4 9 7 6 9 2 13 1 7 1 . 8 4 . 11 4 . 2 18 10 41 1 . Fire 1138 | 13 4 19 88 6 38 34 52 73 87 5 100 . 19 2 43 7 7 23 75 14 61 34 28 13 88 95 103 5 2 Melee 64 | . . . . . . . . . . . 2 . 30 . 11 . . . . . . . . . . . 14 7 . Ram 10 | . . . . . . . 1 . 1 . . . . . . . . . . . . . . . 1 1 1 . 5 Kick 1 | 1 . . . . . . . . . . . . . . . . . . . . . . . . . . . . . Crush 14 | . . 1 3 . . 2 1 . . . . . . . 2 . . . . . . . . . 1 4 . . . Escape Stasis 183 | . . . . . . . . 40 . . 10 . 35 . 19 . . . . . 8 . 16 . 8 . . 42 5 Rewire 163 | . . . . . . . . 8 . . . . 110 . . . . . . . . . . . 45 . . . . Trap . | . . . . . . . . . . . . . . . . . . . . . . . . . . . . . . Miscellaneous . | . . . . . . . . . . . . . . . . . . . . . . . . . . . . . . Route ------- -11/Scrapyard -10/Materials -10/Mines (discovered 2 exits: *Mat x2) -9/Materials (discovered 5 exits: *Mat x2 / [*Min] / [*Sto x2]) -9/Mines (discovered 2 exits: *Mat / *Exi) -9/Exiles (discovered 2 exits: [*Min x2]) -8/Mines -8/Materials (discovered 2 exits: *Fac / Gar) -8/Garrison (discovered 2 exits: *Mat x2) -8/Materials -7/Factory -7/Garrison -6/Factory -6/Garrison (discovered 4 exits: *Fac x4) -6/Factory -6/Garrison (discovered 2 exits: *Fac x2) -5/Factory -5/Waste -5/Factory -5/Garrison -5/Factory -5/Garrison (discovered 3 exits: *Fac x3) -4/Factory (discovered 2 exits: *Res / Gar) -4/Garrison -3/Research -3/Garrison (discovered 2 exits: *Res x2) -3/Research (discovered 2 exits: *Res / *Qua) -3/Quarantine (discovered 2 exits: *Res / Gar) -3/Garrison -3/Section 7 History --------- Turn | Location | Event 17 | -11/Scrapyard | Discovered new exit (range 3) 224 | -11/Scrapyard | Entered Materials 260 | -10/Materials | Discovered new exit (range 16) 308 | -10/Materials | Build established: Mutant 341 | -10/Materials | Entered Mines 656 | -10/Mines | Discovered new exit (range 6) 695 | -10/Mines | Build established: Scavenger-Mutant 735 | -10/Mines | Discovered new exit (range 9) 905 | -10/Mines | Found the Drone Emporium 916 | -10/Mines | Found Prototype Device 916 | -10/Mines | Identified Thief Drone Bay 1042 | -10/Mines | Learned location of Recycling (-9) 1140 | -10/Mines | Entered Materials 1140 | -9/Materials | Evolved 2 slots: Utility x1, Weapon x1 1487 | -9/Materials | Discovered new exit (range 15) 1828 | -9/Materials | Discovered new exit (range 11) 1843 | -9/Materials | Build established: Scavenger-Tank 2079 | -9/Materials | Discovered new exit (range 11) 2221 | -9/Materials | Discovered new exit (range 13) 2500 | -9/Materials | Repaired Lgt. Armor Plating 2527 | -9/Materials | Repaired Lgt. Armor Plating 2601 | -9/Materials | Discovered new exit (range 16) 2674 | -9/Materials | Build established: Tank 2740 | -9/Materials | First assault squad dispatched 2808 | -9/Materials | Entered Mines 2888 | -9/Mines | Found a damaged Exp. Sensor Array with a note attached 2892 | -9/Mines | Found Prototype Device 2993 | -9/Mines | Received a Rocket Launcher from a helpful Derelict 3038 | -9/Mines | Discovered new exit (range 9) 3095 | -9/Mines | Learned location of Storage (-9) 3168 | -9/Mines | Deemed a non-threat by the Exiles lab entrance 3168 | -9/Mines | Discovered new exit (range 5) 3188 | -9/Mines | Entered Exiles 3188 | -9/Exiles | Accompanied by 2 allies 3218 | -9/Exiles | Led the pair of lost Derelicts to a safe place 3227 | -9/Exiles | Met 8R-AWN 3254 | -9/Exiles | Met EX-HEX 3313 | -9/Exiles | Met EX-DEC 3342 | -9/Exiles | Learned location of Zion (-6) 3395 | -9/Exiles | Discovered new exit (range 14) 3494 | -9/Exiles | Met EX-BIN 3518 | -9/Exiles | Aligned with FarCom system 3520 | -9/Exiles | Given EX-Vault access code 3558 | -9/Exiles | Opened EX-Vault 3600 | -9/Exiles | Warned to stay clear of 0b10 Research branches 4274 | -9/Exiles | Discovered new exit (range 14) 4537 | -9/Exiles | Visited The Gauntlet 4932 | -9/Exiles | Found Gui. Plasma Cannon 5199 | -9/Exiles | Attacked by the Exiles 5345 | -9/Exiles | Destroyed 8R-AWN 5762 | -9/Exiles | Found 8R-AWN's Boregun 5764 | -9/Exiles | Destroyed EX-HEX 5927 | -9/Exiles | Destroyed EX-DEC 5997 | -9/Exiles | Destroyed EX-BIN 6086 | -9/Exiles | Found Prototype Processor 6103 | -9/Exiles | Found AS-neutralizer No. 17b 6337 | -9/Exiles | Found 8R-AWN's Boregun 6705 | -9/Exiles | Found Field Lobotomy Kit 6710 | -9/Exiles | Found Chronowheel 7830 | -9/Exiles | Found Deploy-a-Sentry 7885 | -9/Exiles | Build established: Scavenger-Tank 8131 | -9/Exiles | Stole three prototypes: Chronowheel, Gui. Plasma Cannon, Field Lobotomy Kit 8131 | -9/Exiles | Entered Mines 8170 | -8/Mines | AD-0RF came to Exiles' defense 8237 | -8/Mines | Lost 3 allies 8283 | -8/Mines | Lost 5 parts (1p1n1u2w) 8290 | -8/Mines | Core integrity fell below 50% 8312 | -8/Mines | Destroyed AD-0RF 8318 | -8/Mines | Found Prototype Device 8318 | -8/Mines | Identified Exp. Thermal Shield 8329 | -8/Mines | Found Prototype Processor 8338 | -8/Mines | Found Prototype Special Weapon 8338 | -8/Mines | Identified AD-0RF's Magmablaster 8571 | -8/Mines | Found a Scrap Suit stashed away for nefarious purposes 8621 | -8/Mines | Build established: Tank 8628 | -8/Mines | Discovered new exit (range 13) 8679 | -8/Mines | Entered Materials 8679 | -8/Materials | Evolved 2 slots: Utility x2 8858 | -8/Materials | Repaired Lyr. Heavy Armor Plating? 8955 | -8/Materials | Garrison activated, responded to threat 8966 | -8/Materials | Repaired Arm. Huge Wheel? 9021 | -8/Materials | Lost 3 parts (2n1w) 9212 | -8/Materials | Discovered new exit (range 10) 9344 | -8/Materials | Identified exit to Garrison 9345 | -8/Materials | Entered Garrison 9366 | -8/Garrison | Triggered checkpoint 9410 | -8/Garrison | Installed Relay Interface Framework 9422 | -8/Garrison | Garrison Relay disabled 9524 | -8/Garrison | Triggered checkpoint 9635 | -8/Garrison | Triggered checkpoint 9725 | -8/Garrison | Garrison Relay disabled 9783 | -8/Garrison | Triggered checkpoint 9900 | -8/Garrison | Triggered checkpoint 9983 | -8/Garrison | Destroyed 10 combat bots 10051 | -8/Garrison | Discovered new exit (range 11) 10145 | -8/Garrison | Spotted B-75 Beast 10235 | -8/Garrison | Build established: Scavenger-Tank 10279 | -8/Garrison | Triggered checkpoint 10363 | -8/Garrison | Discovered new exit (range 10) 10410 | -8/Garrison | Rescued a captive Derelict 10412 | -8/Garrison | Rescued a captive Derelict 10573 | -8/Garrison | Entered Materials 10573 | -8/Materials | Accompanied by 2 allies 10638 | -8/Materials | Repaired Lyr. Heavy Armor Plating 10775 | -8/Materials | Met 7R-MNS 10788 | -8/Materials | Discovered new exit (range 3) 10932 | -8/Materials | Attacked by 7R-MNS 11028 | -8/Materials | Lost 3 parts (1u2w) 11053 | -8/Materials | Core integrity fell below 50% 11100 | -8/Materials | 7R-MNS lamented failing the tripod run 11100 | -8/Materials | Destroyed 7R-MNS 11124 | -8/Materials | Lost 7 parts (2p2n1u2w) 11128 | -8/Materials | Found Prototype Device 11128 | -8/Materials | Identified Thermal Barrier 11133 | -8/Materials | Found Prototype Device 11133 | -8/Materials | Identified Multitargeting Array 11137 | -8/Materials | Found Prototype Leg 11279 | -8/Materials | Entered Factory 11279 | -7/Factory | Evolved 2 slots: Propulsion x1, Utility x1 11314 | -7/Factory | Identified Exp. Sensor Array 11404 | -7/Factory | Identified Tripod Weapons Platform 11405 | -7/Factory | Attached Tripod Weapons Platform, gained temporary slots: Weapon x2 11677 | -7/Factory | Identified exit to Garrison 11677 | -7/Factory | Entered Garrison 11697 | -7/Garrison | Triggered checkpoint 11752 | -7/Garrison | Expanded RIF knowledge: Robot Detection 11763 | -7/Garrison | Garrison Relay disabled 11791 | -7/Garrison | Build established: Tank 12142 | -7/Garrison | Triggered checkpoint 12153 | -7/Garrison | Triggered checkpoint 12300 | -7/Garrison | Discovered new exit (range 12) 12323 | -7/Garrison | Build established: Hauler-Gunner 12449 | -7/Garrison | Triggered checkpoint 12491 | -7/Garrison | Expanded RIF knowledge: Zone Cloak 12620 | -7/Garrison | Entered Factory 12620 | -6/Factory | Evolved 2 slots: Propulsion x1, Utility x1 12725 | -6/Factory | Identified exit to Garrison 12729 | -6/Factory | Entered Garrison 13025 | -6/Garrison | Warlord forces raided the area 13099 | -6/Garrison | Triggered checkpoint 13127 | -6/Garrison | Expanded RIF knowledge: Zone Cloak 13133 | -6/Garrison | Triggered checkpoint 13151 | -6/Garrison | Triggered checkpoint 13318 | -6/Garrison | Discovered new exit (range 10) 13423 | -6/Garrison | Discovered new exit (range 10) 13447 | -6/Garrison | Triggered checkpoint 13555 | -6/Garrison | Triggered checkpoint 13587 | -6/Garrison | Triggered checkpoint 13619 | -6/Garrison | Triggered checkpoint 13719 | -6/Garrison | Discovered new exit (range 10) 13841 | -6/Garrison | Triggered checkpoint 13929 | -6/Garrison | Triggered checkpoint 13953 | -6/Garrison | Discovered new exit (range 3) 13983 | -6/Garrison | Triggered checkpoint 14100 | -6/Garrison | Found Gamma Bomb Array 14303 | -6/Garrison | Entered Factory 14303 | -6/Factory | Accompanied by 4 allies 14445 | -6/Factory | Identified exit to Garrison 14451 | -6/Factory | Entered Garrison 14451 | -6/Garrison | Accompanied by 3 allies 14519 | -6/Garrison | Triggered checkpoint 14562 | -6/Garrison | Lost 3 allies 14649 | -6/Garrison | Triggered checkpoint 14714 | -6/Garrison | Lost 9 parts (1p2n3u3w) 14727 | -6/Garrison | Destroyed 8 combat bots 14819 | -6/Garrison | Triggered checkpoint 14913 | -6/Garrison | Triggered checkpoint 15020 | -6/Garrison | Discovered new exit (range 15) 15030 | -6/Garrison | Build established: Hauler-Tank 15346 | -6/Garrison | Triggered checkpoint 15501 | -6/Garrison | Triggered checkpoint 15549 | -6/Garrison | Expanded RIF knowledge: Threat Obfuscation 15589 | -6/Garrison | Garrison Relay disabled 15696 | -6/Garrison | Triggered checkpoint 15708 | -6/Garrison | Build established: Hauler-Mutant 15808 | -6/Garrison | Discovered new exit (range 10) 15833 | -6/Garrison | Triggered checkpoint 15858 | -6/Garrison | System corruption reached 10% 15861 | -6/Garrison | Entered Factory 15861 | -5/Factory | Evolved 2 slots: Propulsion x2 16006 | -5/Factory | Spotted B-75 Beast 16014 | -5/Factory | Destroyed B-75 Beast 16029 | -5/Factory | Build established: Scavenger-Tank 16178 | -5/Factory | Sucked down chute 16178 | -5/Factory | Entered Waste 16191 | -5/Waste | Spotted C-40 Crusher 16193 | -5/Waste | EMP discharged 16241 | -5/Waste | Spotted C-40 Crusher 16244 | -5/Waste | Spotted C-40 Crusher 16258 | -5/Waste | Spotted C-40 Crusher 16290 | -5/Waste | Spotted C-40 Crusher 16293 | -5/Waste | EMP discharged 16293 | -5/Waste | System corruption reached 10% 16301 | -5/Waste | Spotted C-40 Crusher 16328 | -5/Waste | Discovered new exit (range 11) 16350 | -5/Waste | Entered Factory 17030 | -5/Factory | Identified exit to Garrison 17039 | -5/Factory | Cargo convoy interrupted 17097 | -5/Factory | Entered Garrison 17147 | -5/Garrison | Triggered checkpoint 17285 | -5/Garrison | Spotted Executioner 17307 | -5/Garrison | Spotted Executioner 17313 | -5/Garrison | Destroyed Executioner 17319 | -5/Garrison | Destroyed Executioner 17350 | -5/Garrison | Identified Exp. Core Analyzer 17355 | -5/Garrison | Found Corrupted Exp. Core Analyzer 17359 | -5/Garrison | Triggered checkpoint 17386 | -5/Garrison | Triggered checkpoint 17432 | -5/Garrison | Destroyed 9 combat bots 17483 | -5/Garrison | Triggered checkpoint 17496 | -5/Garrison | Garrison Relay disabled 17548 | -5/Garrison | Expanded RIF knowledge: Coupler Efficiency 17797 | -5/Garrison | Build established: Hauler-Mutant 17963 | -5/Garrison | Triggered checkpoint 18035 | -5/Garrison | Discovered new exit (range 8) 18067 | -5/Garrison | Spotted B-86 Titan 18067 | -5/Garrison | Spotted B-90 Cyclops 18082 | -5/Garrison | System corruption reached 30% 18084 | -5/Garrison | Entered Factory 18084 | -5/Factory | Accompanied by 1 ally 18369 | -5/Factory | Build established: Scavenger-Tank 18515 | -5/Factory | Identified exit to Garrison 18515 | -5/Factory | Entered Garrison 18515 | -5/Garrison | Accompanied by 1 ally 18619 | -5/Garrison | Spotted B-75 Beast 18631 | -5/Garrison | Destroyed B-75 Beast 18671 | -5/Garrison | Triggered checkpoint 18804 | -5/Garrison | Discovered new exit (range 8) 19003 | -5/Garrison | Triggered checkpoint 19085 | -5/Garrison | Triggered checkpoint 19138 | -5/Garrison | Expanded RIF knowledge: Program Shield 19196 | -5/Garrison | Garrison Relay disabled 19294 | -5/Garrison | Discovered new exit (range 8) 19343 | -5/Garrison | Triggered checkpoint 19557 | -5/Garrison | Garrison Relay disabled 19672 | -5/Garrison | Lost 5 parts (2n1u2w) 19686 | -5/Garrison | Discovered new exit (range 11) 19728 | -5/Garrison | Entered Factory 19728 | -4/Factory | Evolved 2 slots: Utility x2 20543 | -4/Factory | Lost 3 allies 20602 | -4/Factory | Garrison activated, responded to threat 20609 | -4/Factory | Discovered new exit (range 14) 20646 | -4/Factory | Lost 3 parts (1n1u1w) 20652 | -4/Factory | Identified exit to Garrison 20657 | -4/Factory | Entered Garrison 20657 | -4/Garrison | Accompanied by 1 ally 20665 | -4/Garrison | Triggered checkpoint 20684 | -4/Garrison | Expanded RIF knowledge: Hotswap 20860 | -4/Garrison | Triggered checkpoint 20864 | -4/Garrison | Triggered checkpoint 20880 | -4/Garrison | Spotted B-86 Titan 20930 | -4/Garrison | Destroyed B-86 Titan 20950 | -4/Garrison | Lost 5 parts (1p2n2w) 21040 | -4/Garrison | Discovered new exit (range 15) 21104 | -4/Garrison | Entered Research 21104 | -3/Research | Evolved 2 slots: Utility x2 21332 | -3/Research | Found Quantum Capacitor 21420 | -3/Research | Identified exit to Garrison 21431 | -3/Research | Build established: Botlord-Tank 21448 | -3/Research | Entered Garrison 21458 | -3/Garrison | Triggered checkpoint 21498 | -3/Garrison | Garrison Relay disabled 21594 | -3/Garrison | Spotted B-86 Titan 21618 | -3/Garrison | Triggered checkpoint 21625 | -3/Garrison | Garrison Relay disabled 21811 | -3/Garrison | Lost 3 allies 22072 | -3/Garrison | Found embedded Infiltrators 22230 | -3/Garrison | Triggered checkpoint 22254 | -3/Garrison | Allies destroyed B-86 Titan 22325 | -3/Garrison | Discovered new exit (range 12) 22344 | -3/Garrison | Triggered checkpoint 22376 | -3/Garrison | Garrison Relay disabled 22470 | -3/Garrison | Triggered checkpoint 22532 | -3/Garrison | Expanded RIF knowledge: Autoassimilate 22570 | -3/Garrison | Discovered new exit (range 10) 22594 | -3/Garrison | Triggered checkpoint 22663 | -3/Garrison | Garrison Relay disabled 22768 | -3/Garrison | Entered Research 22768 | -3/Research | Accompanied by 3 allies 22985 | -3/Research | Spotted B-86 Titan 23027 | -3/Research | Destroyed B-86 Titan 23061 | -3/Research | Lost 6 parts (3n3u) 23071 | -3/Research | Lost 4 allies 23468 | -3/Research | Discovered new exit (range 5) 23996 | -3/Research | Discovered new exit (range 16) 24068 | -3/Research | Entered Quarantine 24099 | -3/Quarantine | Found Corrupted Quantum Capacitor 24109 | -3/Quarantine | Lost 3 parts (1n1u1w) 24201 | -3/Quarantine | Found Alien Impact Weapon 24249 | -3/Quarantine | Found Alien Artifact 24249 | -3/Quarantine | Identified Phase Armor 24288 | -3/Quarantine | Spotted Alpha 7 24305 | -3/Quarantine | Destroyed Alpha 7 24518 | -3/Quarantine | Found Alien Artifact 24518 | -3/Quarantine | Identified Dimensional Node Initializer 24518 | -3/Quarantine | Initialized slip node 24531 | -3/Quarantine | Found Alien Artifact 24713 | -3/Quarantine | Found Alien Slashing Weapon 24726 | -3/Quarantine | Identified Sigix Broadsword 24871 | -3/Quarantine | Found Alien Artifact 24890 | -3/Quarantine | Found Powered Armor 24944 | -3/Quarantine | System corruption reached 10% 25038 | -3/Quarantine | Build established: Botlord-Mutant 25077 | -3/Quarantine | Found Alien Artifact 25118 | -3/Quarantine | Cryocooling Duct disabled 25133 | -3/Quarantine | Ambient heat levels rising (+20) 25133 | -3/Quarantine | Non-combat units ordered to evacuate 25199 | -3/Quarantine | Cryocooling Duct disabled 25214 | -3/Quarantine | Ambient heat levels rising (+20) 25214 | -3/Quarantine | Combat units ordered to evacuate 25314 | -3/Quarantine | Quarantine Guard activated 25463 | -3/Quarantine | Spotted Quarantine Guard 25482 | -3/Quarantine | Spotted Quarantine Guard 25482 | -3/Quarantine | Spotted Quarantine Guard 25535 | -3/Quarantine | Assimilated Quarantine Guard with FLK Orb 25538 | -3/Quarantine | Assimilated Quarantine Guard with FLK Orb 25545 | -3/Quarantine | Spotted Quarantine Guard 25564 | -3/Quarantine | Lost 14 parts (1p5n5u3w) 25565 | -3/Quarantine | Allies destroyed Quarantine Guard 25571 | -3/Quarantine | Identified Core Stripper 25621 | -3/Quarantine | Destroyed Quarantine Guard 25650 | -3/Quarantine | Lost 3 parts (2n1u) 25809 | -3/Quarantine | Spotted Quarantine Guard 25821 | -3/Quarantine | Destroyed Quarantine Guard 26062 | -3/Quarantine | Build established: Scavenger-Mutant 26076 | -3/Quarantine | Spotted Quarantine Guard 26088 | -3/Quarantine | Destroyed Quarantine Guard 26229 | -3/Quarantine | Spotted Quarantine Guard 26234 | -3/Quarantine | Destroyed Quarantine Guard 26424 | -3/Quarantine | Spotted Fortress 26431 | -3/Quarantine | Core integrity fell below 50% 26445 | -3/Quarantine | Identified Transdimensional Reconstructor 26445 | -3/Quarantine | Warped through subspace to slip node 26500 | -3/Quarantine | Spotted Quarantine Guard 26506 | -3/Quarantine | Destroyed Quarantine Guard 26532 | -3/Quarantine | Found Alien Launcher 26794 | -3/Quarantine | Discovered new exit (range 16) 26794 | -3/Quarantine | Spotted Quarantine Guard 26803 | -3/Quarantine | Destroyed Quarantine Guard 26832 | -3/Quarantine | Identified exit to Research 27301 | -3/Quarantine | Spotted Quarantine Guard 27321 | -3/Quarantine | Identified exit to Garrison 27321 | -3/Quarantine | Entered Garrison 27334 | -3/Garrison | Expanded RIF knowledge: Alert ID Control 27399 | -3/Garrison | System corruption reached 30% 27413 | -3/Garrison | Spotted B-86 Titan 27416 | -3/Garrison | Identified Sigix Terminator 27424 | -3/Garrison | Fired Sigix Terminator 27424 | -3/Garrison | Triggered checkpoint 27424 | -3/Garrison | Triggered checkpoint 27424 | -3/Garrison | Triggered checkpoint 27424 | -3/Garrison | Triggered checkpoint 27445 | -3/Garrison | Destroyed 17 combat bots 27458 | -3/Garrison | Discovered new exit (range 15) 27461 | -3/Garrison | Triggered checkpoint 27489 | -3/Garrison | Lost 10 parts (1p4n4u1w) 27498 | -3/Garrison | Entered Section 7 27507 | -3/Section 7 | Found Alien Artifact 27507 | -3/Section 7 | Identified Microwarp Drive 27523 | -3/Section 7 | Scanned by Researcher 27529 | -3/Section 7 | Core integrity fell below 20% 27533 | -3/Section 7 | Assimilated C-55 Analyst with FLK Orb 27534 | -3/Section 7 | Destroyed by H-77 Assassin with High-powered Shotgun Last Messages --------------- 27530_ Com. HERF Cannon destroyed. 27530_ Adv. Remote Datajack destroyed. 27531_ Penetrated by Slug. 27531_ Held in stasis. 27531_ C-55 Analyst is analyzing... 27532_ Quantum Generator explodes. 27532_ H-77 Assassin destroyed. 27532_ Penetrated by Slug. 27532_ Slug penetrates Wall. 27532_ Penetrated by Slug. 27532_ Slug penetrates Wall. 27532_ Microwarp Drive destroyed. 27533_ Slug penetrates Garrison Access. 27533_ Slug penetrates C-55 Analyst. 27533_ Slug penetrates Wall. 27533_ C-55 Analyst assimilated. 27533_ Field Lobotomy Kit destroyed. 27534_ Analyst 8a destroyed. 27534_ Penetrated by Slug. 27534_ Slug penetrates Wall. Map ----- +----------------------------------------------------+ | ?????????????????????????????????????????????????? | | ?????????????????????????????????????????????????? | | ?????????????????????????????????????????????????? | | ?????????????????????????????????????????????????? | | ????????????????????Y????????????????????????????? | | ?????????????????????????????????????????????????? | | ?????????????????????????????????????????????????? | | ?????????????????????????????????????????????????? | | ?????????????????????????????????????????????????? | | ?????????????????????????????????????????????????? | | ?????????????????????????????????????????????????? | | ?????????????????????????????????????????????????? | | ?????????????????????????????????????????????????? | | ?????????????????????????????????????????????????? | | ?????????????????????????????????????????????????? | | ?????????????????????????????????????????????????? | | ?????????????????????????????????????????????????? | | ?????????????????????????????????????????????????? | | ??????????????????????????????????###????????????? | | ??????????????????????????######? #????????????? | | ???????????????????????### # # # #????????????? | | ????????????????????#### #?????H??????? | | ????????????????????# | #????????????? | | ????????????????????# ""G""$$! #????????????? | | ????????????????????# h"x"x[h= #????????????? | | ????????????????????# h @=%$ #????????????? | | ????????????????????# ! #????????????? | | ????????##########??# ##+#????????????? | | ????????# #?## +????????????? | | ????????# "" #?# Y #????????????? | | ????????# "" ###### #????????????? | | ????????# """"" # #????????????? | | ????????# """ " # #????????????? | | ????????# """ " # +????????????? | | ????????# "" + #????????????? | | ????????# "" # ###+###########????????????? | | ????????# # #??????????????????????????? | | ????????#####+#### #??????????????????????????? | | ??????????# #??????????????????????????? | | ??????????# #??????????????????????????? | | ????????### #??????????????????????????? | | ????????#"" #??????????????????????????? | | ????????#T ###+####??????????????????????????? | | ????????### #?????????????????????????????????? | | ??????????# #?????????????????????????????????? | | ??????????######?????????????????????????????????? | | ?????????????????????????????????????????????????? | | ?????????????????????????????????????????????????? | | ?????????????????????????????????????????????????? | | ?????????????????????????????????????????????????? | +----------------------------------------------------+ Best States ------------- Heat Dissipation 136 Coolant Potential 120 Energy Generation 31 Energy Capacity 950 Matter Stores 300 Matter Capacity 550 Sight Range 16 Robot Scan Range 16 Terrain Scan Range 24 Terrain Scan Density 10 Jamming Range 16 Power Amplification 30 Armor Coverage 1200 Resistance: TH 50 Weapon Cycling 15 Evasion (%) 57 Targeting Accuracy 32 Target Analysis 8 Core Analysis 8 Recoil Reduction 6 Relay Coupler Types 4 Relay Coupler Value 155 Authchip Count 1 Item Schematics ----------------- None Robot Schematics ------------------ None Fabricated ------------ Nothing Repaired ---------- Lgt. Armor Plating | 3% | -9/Materials Lgt. Armor Plating | 14% | -9/Materials Lyr. Heavy Armor Plating | 35% | -8/Materials Arm. Huge Wheel | 49% | -8/Materials Lyr. Heavy Armor Plating | 20% | -8/Materials Alien Tech Used ----------------- Phase Armor Dimensional Node Initializer Sigix Broadsword Core Stripper Transdimensional Reconstructor Sigix Terminator Microwarp Drive Achievements -------------- Gunslinger Challenges ------------ None Game ------ Seed SensorIntegratedAutobeam Manual? 0 Play Time 04:45:00 Cumulative 420.1 hours Start 2025.05.19 @ 15:46:48 End 2025.05.20 @ 20:28:26 Sessions 7 Manual Loads 0 Difficulty Rogue Special Mode None Game No. 204 Rogue 204 Adventurer 0 Explorer 0 Win Type - Total 17 Types 3/3/6/2/1/0/1/0/0/1 Lore% 88 Gallery% 83 Achievement% 77 Wizard Run 0 Options --------- Layout 0 ASCII 0 Keyboard 0 Movement Arrows Keybinds 0 Fullscreen 2 Font 18/SmallcapsGlow Map View 76x50 Zoom Use 0% Tactical HUD 1 Map Filters NONE Filters NONE Steam X RUN: 95b6643f-8182-427a-8662-6150c1c72c87